fUST/lending_fUST_20240115
["ID","MTS","AMOUNT","RATE_DAILY","PERIOD"]
[311665619,1705297846684,-500.0,0.00028724,2]
[311665620,1705297846693,-500.0,0.00028724,2]
[311665621,1705297846802,-500.0,0.00028724,2]
[311665622,1705297846816,-500.0,0.00028724,2]
[311665623,1705297846825,-500.0,0.00028724,2]
[311665624,1705297846834,-500.0,0.00028724,2]
[311665625,1705297846843,-515.34296366,0.00028724,2]
[311665626,1705297846852,-500.0,0.00028724,2]
[311665627,1705297846862,-500.0,0.00028724,2]
[311665628,1705297846871,-5000.0,0.00028738,5]
[311665629,1705297846880,-969.11029442,0.00028738,3]
[311665630,1705297846890,-353.50795339,0.00028738,2]
[311665631,1705297846899,-3618.26450814,0.00028738,3]
[311665632,1705297846909,-500.0,0.00028748,2]
[311665633,1705297846918,-500.0,0.00028754,2]
[311665634,1705297846927,-500.0,0.00028754,2]
[311665635,1705297846936,-500.0,0.00028754,2]
[311665636,1705297846945,-500.0,0.00028754,2]
[311665637,1705297846954,-502.91814727,0.00028754,2]
[311665638,1705297846963,-500.0,0.00028754,2]
[311665639,1705297846973,-500.0,0.00028754,2]
[311665640,1705297846982,-194.61029564,0.00028754,2]
[311665641,1705297846991,-500.0,0.00028754,2]
[311665642,1705297847000,-264.33192153,0.00028754,2]
[311665643,1705297847009,-613.25154807,0.00028754,2]
[311665644,1705297847018,-500.0,0.00028754,2]
[311665645,1705297847027,-500.0,0.00028754,2]
[311665646,1705297847036,-500.0,0.00028754,2]
[311665647,1705297847046,-500.0,0.00028754,2]
[311665648,1705297847055,-500.0,0.00028754,2]
[311665649,1705297847064,-500.0,0.00028755,2]
[311665650,1705297847073,-500.0,0.00028755,2]
[311665651,1705297847082,-3489.32,0.00028877,2]
[311665652,1705297847091,-1586.62,0.00028877,2]
[311665653,1705297847101,-500.0,0.00028877,2]
[311665654,1705297847110,-500.0,0.00028877,2]
[311665655,1705297847119,-16585.14,0.00028887,3]
[311665656,1705297847129,-19902.17,0.00028897,3]
[311665657,1705297847138,-23882.61,0.00028907,3]
[311665658,1705297847147,-28659.13,0.00028917,3]
[311665659,1705297847156,-604.03,0.00028927,2]
[311665660,1705297847165,-500.0,0.00028927,2]
[311665661,1705297847174,-2130.23,0.00028946,2]
[311665662,1705297847183,-500.0,0.00028946,2]
[311665663,1705297847193,-1225.88,0.00028958,2]
[311665664,1705297847202,-2908.5,0.00028958,2]
[311665665,1705297847211,-1085.62,0.00028958,2]
[311665666,1705297847220,-500.0,0.00028958,2]
[311665667,1705297847232,-500.0,0.00028958,2]
[311665668,1705297847241,-511.62,0.00028958,2]
[311665669,1705297847250,-500.0,0.00028958,2]
[311665670,1705297847259,-500.0,0.00028958,2]
[311665671,1705297847270,-500.0,0.00028967,2]
[311665672,1705297847279,-492.96338283,0.00028967,2]
[311665673,1705297847289,-500.0,0.00028967,2]
[311665674,1705297847298,-500.0,0.00028967,2]
[311665675,1705297847307,-806.39,0.00028967,2]
[311665676,1705297847318,-500.0,0.00028967,2]
[311665677,1705297847327,-500.0,0.00028967,2]
[311665678,1705297847337,-500.0,0.00028998,2]
[311665679,1705297847346,-500.0,0.00028998,2]
[311665680,1705297847356,-500.0,0.00028998,2]
[311665681,1705297847365,-500.0,0.00028998,2]
[311665682,1705297847375,-500.0,0.00028998,2]
[311665683,1705297847384,-500.0,0.00029022,2]
[311665684,1705297847393,-500.0,0.00029028,2]
[311665685,1705297847403,-500.0,0.00029028,2]
[311665686,1705297847413,-500.0,0.00029028,2]
[311665687,1705297847422,-397.72546086,0.00029028,2]
[311665688,1705297847431,-500.0,0.00029028,2]
[311665689,1705297847441,-500.0,0.00029028,2]
[311665690,1705297847450,-500.0,0.00029028,2]
[311665691,1705297847459,-500.0,0.00029028,2]
[311665692,1705297847469,-500.0,0.00029028,2]
[311665693,1705297847479,-500.0,0.00029029,2]
[311665694,1705297847488,-500.0,0.00029029,2]
[311665695,1705297847498,-3489.32,0.00029151,2]
[311665696,1705297847507,-1586.62,0.00029151,2]
[311665697,1705297847516,-500.0,0.00029151,2]
[311665698,1705297847526,-500.0,0.00029151,2]
[311665699,1705297847535,-391.6067897,0.00029178,2]
[311665700,1705297847545,-153.0,0.00029178,2]
[311665701,1705297847554,-153.0,0.00029178,2]
[311665702,1705297847564,-604.03,0.00029201,2]
[311665703,1705297847573,-2130.23,0.0002922,2]
[311665704,1705297847582,-500.0,0.0002922,2]
[311665705,1705297847599,-1225.88,0.00029232,2]
[311665706,1705297847612,-2908.5,0.00029232,2]
[311665707,1705297847621,-1085.62,0.00029232,2]
[311665708,1705297847632,-500.0,0.00029232,2]
[311665709,1705297847641,-500.0,0.00029232,2]
[311665710,1705297847651,-511.62,0.00029232,2]
[311665711,1705297847661,-500.0,0.00029232,2]
[311665712,1705297847673,-500.0,0.00029232,2]
[311665713,1705297847684,-500.0,0.00029241,2]
[311665714,1705297847694,-806.39,0.00029241,2]
[311665715,1705297847705,-500.0,0.00029241,2]
[311665716,1705297847716,-500.0,0.00029241,2]
[311665717,1705297847725,-500.0,0.00029272,2]
[311665718,1705297847735,-500.0,0.00029272,2]
[311665719,1705297847745,-500.0,0.00029272,2]
[311665720,1705297847756,-500.0,0.00029272,2]
[311665721,1705297847766,-500.0,0.00029272,2]
[311665722,1705297847776,-500.0,0.00029296,2]
[311665723,1705297847786,-207.61135533,0.00029302,2]
[311665724,1705297847797,-506.46,0.00029302,2]
[311665725,1705297847808,-500.0,0.00029302,2]
[311665726,1705297847820,-500.0,0.00029302,2]
[311665727,1705297847829,-500.0,0.00029302,2]
[311665728,1705297847840,-500.0,0.00029302,2]
[311665729,1705297847851,-500.0,0.00029303,2]
[311665730,1705297847861,-500.0,0.00029303,2]
[311665731,1705297847871,-154.95620862,0.00029307,2]
[311665732,1705297847881,-153.0,0.00029315,2]
[311665733,1705297847893,-306.0,0.00029315,2]
[311665734,1705297847903,-306.0,0.00029315,2]
[311665735,1705297847913,-154.95620862,0.00029338,2]
[311665736,1705297847924,-1000.0,0.00029352,7]
[311665737,1705297847935,-175.0,0.00029352,2]
[311665738,1705297847946,-154.95620862,0.00029387,2]
[311665739,1705297847955,-3489.32,0.00029425,2]
[311665740,1705297847966,-1586.62,0.00029425,2]
[311665741,1705297847975,-500.0,0.00029425,2]
[311665742,1705297847984,-500.0,0.00029425,2]
[311665743,1705297847994,-604.03,0.00029475,2]
[311665744,1705297848003,-2130.23,0.00029494,2]
[311665745,1705297848012,-500.0,0.00029494,2]
[311665746,1705297848023,-1225.88,0.00029506,2]
[311665747,1705297848032,-2908.5,0.00029506,2]
[311665748,1705297848042,-1085.62,0.00029506,2]
[311665749,1705297848052,-500.0,0.00029506,2]
[311665750,1705297848062,-511.62,0.00029506,2]
[311665751,1705297848071,-500.0,0.00029506,2]
[311665752,1705297848081,-500.0,0.00029506,2]
[311665753,1705297848090,-500.0,0.00029515,2]
[311665754,1705297848099,-806.39,0.00029515,2]
[311665755,1705297848109,-500.0,0.00029515,2]
[311665756,1705297848118,-500.0,0.00029515,2]
[311665757,1705297848128,-500.0,0.00029546,2]
[311665758,1705297848138,-500.0,0.00029546,2]
[311665759,1705297848147,-500.0,0.00029546,2]
[311665760,1705297848157,-500.0,0.00029546,2]
[311665761,1705297848166,-414.3972831,0.00029576,2]
[311665762,1705297848176,-500.0,0.00029576,2]
[311665763,1705297848185,-500.0,0.00029577,2]
[311665764,1705297848195,-500.0,0.00029577,2]
[311665765,1705297848205,-155.490721,0.00029589,2]
[311665766,1705297848217,-153.0,0.00029589,2]
[311665767,1705297848227,-306.0,0.00029589,2]
[311665768,1705297848237,-507.44515137,0.0002968,3]
[311665769,1705297848246,-3489.32,0.00029699,2]
[311665770,1705297848256,-1586.62,0.00029699,2]
[311665771,1705297848266,-380.06418408,0.00029699,2]
[311665772,1705297848275,-500.0,0.00029699,2]
[311665773,1705297848285,-604.03,0.00029749,2]
[311665774,1705297848294,-153.84014321,0.00029754,2]
[311665775,1705297848304,-2130.23,0.00029768,2]
[311665776,1705297848314,-500.0,0.00029768,2]
[311665777,1705297848324,-1225.88,0.0002978,2]
[311665778,1705297848333,-2908.5,0.0002978,2]
[311665779,1705297848342,-1085.62,0.0002978,2]
[311665780,1705297848352,-500.0,0.0002978,2]
[311665781,1705297848362,-511.62,0.0002978,2]
[311665782,1705297848371,-500.0,0.0002978,2]
[311665783,1705297848381,-500.0,0.0002978,2]
[311665784,1705297848390,-806.39,0.00029789,2]
[311665785,1705297848399,-399.91456077,0.00029789,2]
[311665786,1705297848408,-500.0,0.0002982,2]
[311665787,1705297848418,-500.0,0.0002982,2]
[311665788,1705297848428,-500.0,0.0002985,2]
[311665789,1705297848437,-500.0,0.00029851,2]
[311665790,1705297848446,-500.0,0.00029851,2]
[311665791,1705297848456,-680.57379999,0.00029863,2]
[311665792,1705297848466,-195.20447368,0.000299,2]
[311665793,1705297848476,-3489.32,0.00029973,2]
[311665794,1705297848485,-1586.62,0.00029973,2]
[311665795,1705297848495,-500.0,0.00029973,2]
[311665796,1705297848504,-308.9249858,0.0003,2]
[311665797,1705297848513,-284.838519,0.0003,5]
[311665798,1705297848523,-194.0,0.0003,2]
[311665799,1705297848532,-604.03,0.00030023,2]
[311665800,1705297848542,-2130.23,0.00030042,2]
[311665801,1705297848551,-500.0,0.00030042,2]
[311665802,1705297848560,-1225.88,0.00030054,2]
[311665803,1705297848570,-2908.5,0.00030054,2]
[311665804,1705297848579,-1085.62,0.00030054,2]
[311665805,1705297848589,-500.0,0.00030054,2]
[311665806,1705297848598,-511.62,0.00030054,2]
[311665807,1705297848608,-500.0,0.00030054,2]
[311665808,1705297848617,-500.0,0.00030054,2]
[311665809,1705297848626,-806.39,0.00030063,2]
[311665810,1705297848636,-152.31739518,0.00030066,7]
[311665811,1705297848645,-500.0,0.00030094,2]
[311665812,1705297848655,-500.0,0.00030094,2]
[311665813,1705297848664,-500.0,0.00030124,2]
[311665814,1705297848674,-500.0,0.00030125,2]
[311665815,1705297848683,-500.0,0.00030125,2]
[311665816,1705297848692,-1995.7,0.0003013,2]
[311665817,1705297848702,-4999.98,0.00030136,2]
[311665818,1705297848711,-500.0,0.00030136,2]
[311665819,1705297848720,-150.0,0.00030182,2]
[311665820,1705297848730,-154.95620862,0.00030243,7]
[311665821,1705297848739,-3489.32,0.00030247,2]
[311665822,1705297848749,-1586.62,0.00030247,2]
[311665823,1705297848759,-500.0,0.00030247,2]
[311665824,1705297848768,-604.03,0.00030297,2]
[311665825,1705297848778,-2130.23,0.00030316,2]
[311665826,1705297848787,-500.0,0.00030316,2]
[311665827,1705297848797,-1225.88,0.00030328,2]
[311665828,1705297848807,-2908.5,0.00030328,2]
[311665829,1705297848816,-1085.62,0.00030328,2]
[311665830,1705297848826,-500.0,0.00030328,2]
[311665831,1705297848835,-511.62,0.00030328,2]
[311665832,1705297848845,-500.0,0.00030328,2]
[311665833,1705297848855,-547.00335229,0.00030328,2]
[311665834,1705297848864,-806.39,0.00030337,2]
[311665835,1705297848874,-500.0,0.00030368,2]
[311665836,1705297848883,-500.0,0.00030368,2]
[311665837,1705297848892,-500.0,0.00030398,2]
[311665838,1705297848901,-597.10900048,0.00030399,2]
[311665839,1705297848910,-500.0,0.00030399,2]
[311665840,1705297848920,-3489.32,0.00030521,2]
[311665841,1705297848930,-1586.62,0.00030521,2]
[311665842,1705297848939,-500.0,0.00030521,2]
[311665843,1705297848948,-604.03,0.00030571,2]
[311665844,1705297848958,-2130.23,0.0003059,2]
[311665845,1705297848969,-500.0,0.0003059,2]
[311665846,1705297848978,-1225.88,0.00030602,2]
[311665847,1705297848989,-2654.06791157,0.00030602,2]
[311665920,1705299037923,-500.0,0.00027693,2]
[311665922,1705299037933,-154.98450155,0.00027694,4]
[311665924,1705299037946,-1467.04826523,0.00027694,2]
[311665926,1705299037957,-400.40631078,0.00027695,2]
[311665928,1705299037967,-150.0,0.00027708,2]
[311665930,1705299037980,-976.79905731,0.00027709,2]
[311665932,1705299037991,-352.23353018,0.00028147,2]
[311665934,1705299038002,-500.0,0.0002848,2]
[311665936,1705299038011,-171.87673756,0.00028625,4]
[311665938,1705299038021,-20585.25,0.00028681,3]
[311665940,1705299038031,-15327.1722794,0.00028691,2]
[311665942,1705299038046,-1554.10223945,0.00028691,2]
[311666432,1705299042724,-4270.0,0.00028691,2]
[311666445,1705299042833,-301.84907546,0.00028691,2]
[311666801,1705299046116,-59660.68815833,0.00028691,2]
[311666803,1705299046125,-1240.5015561,0.00028702,2]
[311666805,1705299046134,-617.71,0.00028723,2]
[311666807,1705299046143,-500.0,0.00028723,2]
[311666809,1705299046152,-500.0,0.00028724,2]
[311666811,1705299046161,-500.0,0.00028724,2]
[311666813,1705299046170,-500.0,0.00028724,2]
[311666815,1705299046179,-901.8032287,0.00028738,3]
[311666817,1705299046188,-5000.0,0.00028738,5]
[311666819,1705299046196,-500.0,0.00028744,2]
[311666821,1705299046206,-2545.1,0.00028745,2]
[311666823,1705299046215,-500.0,0.00028745,2]
[311666825,1705299046223,-500.0,0.00028777,2]
[311666827,1705299046234,-910.83,0.00028777,2]
[311666828,1705299046244,-4175.15,0.00028777,2]
[311666830,1705299046254,-500.0,0.00028777,2]
[311666832,1705299046263,-304.41343844,0.00028777,2]
[311666834,1705299046272,-500.0,0.00028777,2]
[311666836,1705299046281,-1477.28,0.00028777,2]
[311666838,1705299046290,-500.0,0.00028777,2]
[311666840,1705299046299,-500.0,0.00028831,2]
[311666842,1705299046308,-218.80255492,0.00028831,2]
[311666844,1705299046317,-500.0,0.00028831,2]
[311666846,1705299046325,-500.0,0.00028831,2]
[311666848,1705299046334,-500.0,0.00028831,2]
[311666850,1705299046344,-500.0,0.00028831,2]
[311666852,1705299046353,-500.0,0.00028831,2]
[311666854,1705299046361,-500.0,0.00028831,2]
[311666856,1705299046371,-500.0,0.00028831,2]
[311666858,1705299046381,-500.0,0.00028831,2]
[311666860,1705299046389,-500.0,0.00028831,2]
[311666862,1705299046398,-500.0,0.00028831,2]
[311666864,1705299046407,-500.0,0.00028843,2]
[311666866,1705299046416,-500.0,0.00028853,2]
[311666868,1705299046425,-500.0,0.00028853,2]
[311666869,1705299046433,-500.0,0.00028853,2]
[311666871,1705299046442,-500.0,0.00028853,2]
[311666873,1705299046452,-500.0,0.00028853,2]
[311666875,1705299046461,-500.0,0.00028916,2]
[311666877,1705299046471,-500.0,0.00028916,2]
[311666879,1705299046480,-500.0,0.00028916,2]
[311666881,1705299046489,-500.0,0.00028916,2]
[311666883,1705299046498,-500.0,0.00028927,2]
[311666885,1705299046507,-500.0,0.00028927,2]
[311666887,1705299046516,-500.0,0.00028927,2]
[311666889,1705299046525,-500.0,0.00028927,2]
[311666891,1705299046535,-500.0,0.00028927,2]
[311666893,1705299046544,-500.0,0.00028927,2]
[311666895,1705299046553,-500.0,0.00028967,2]
[311666897,1705299046563,-500.0,0.00028967,2]
[311666899,1705299046572,-258.3891157,0.00028967,2]
[311666901,1705299046581,-500.0,0.00028967,2]
[311666903,1705299046590,-500.0,0.00028967,2]
[311666905,1705299046599,-367.55425516,0.00028967,2]
[311666906,1705299046608,-500.0,0.00028967,2]
[311666908,1705299046618,-500.0,0.00028967,2]
[311666910,1705299046627,-500.0,0.00028967,2]
[311666912,1705299046636,-500.0,0.00028967,2]
[311666914,1705299046645,-500.0,0.00028967,2]
[311666916,1705299046654,-500.0,0.00028967,2]
[311666918,1705299046664,-500.0,0.00028967,2]
[311666920,1705299046674,-501.54072563,0.00028967,2]
[311666922,1705299046683,-500.0,0.00028967,2]
[311666924,1705299046692,-500.0,0.00028967,2]
[311666926,1705299046701,-500.0,0.00028967,2]
[311666928,1705299046710,-500.0,0.00028967,2]
[311666930,1705299046720,-1187.17,0.00028996,2]
[311666932,1705299046729,-2177.54,0.00028996,2]
[311666934,1705299046741,-1026.51,0.00028996,2]
[311666936,1705299046750,-574.35,0.00028996,2]
[311666938,1705299046759,-407.30916427,0.00028996,2]
[311666940,1705299046769,-500.0,0.00028996,2]
[311666942,1705299046778,-500.0,0.00028996,2]
[311666944,1705299046787,-500.0,0.00028996,2]
[311666946,1705299046795,-617.71,0.00028997,2]
[311666947,1705299046804,-500.0,0.00028998,2]
[311666949,1705299046814,-500.0,0.00028998,2]
[311666951,1705299046823,-2545.1,0.00029019,2]
[311666953,1705299046832,-500.0,0.00029019,2]
[311666955,1705299046841,-153.84014321,0.00029032,2]
[311666957,1705299046850,-910.83,0.00029051,2]
[311666959,1705299046859,-4175.15,0.00029051,2]
[311666961,1705299046868,-500.0,0.00029051,2]
[311666963,1705299046877,-1477.28,0.00029051,2]
[311666965,1705299046886,-500.0,0.00029051,2]
[311666967,1705299046895,-589.20604364,0.00029105,2]
[311666969,1705299046909,-500.0,0.00029105,2]
[311666971,1705299046918,-504.15428497,0.00029105,2]
[311666973,1705299046927,-500.0,0.00029105,2]
[311666975,1705299046937,-500.0,0.00029105,2]
[311666977,1705299046947,-500.0,0.00029105,2]
[311666979,1705299046956,-500.0,0.00029105,2]
[311666981,1705299046965,-500.0,0.00029105,2]
[311666983,1705299046974,-500.0,0.00029105,2]
[311666984,1705299046983,-500.0,0.00029105,2]
[311666986,1705299046992,-500.0,0.00029127,2]
[311666988,1705299047000,-500.0,0.00029127,2]
[311666990,1705299047009,-500.0,0.00029127,2]
[311666992,1705299047018,-500.0,0.0002919,2]
[311666994,1705299047027,-500.0,0.0002919,2]
[311666996,1705299047036,-500.0,0.00029201,2]
[311666998,1705299047045,-500.0,0.00029201,2]
[311667000,1705299047053,-500.0,0.00029201,2]
[311667002,1705299047062,-500.0,0.00029201,2]
[311667004,1705299047071,-500.0,0.00029241,2]
[311667006,1705299047081,-500.0,0.00029241,2]
[311667008,1705299047090,-500.0,0.00029241,2]
[311667010,1705299047099,-500.0,0.00029241,2]
[311667012,1705299047108,-500.0,0.00029241,2]
[311667013,1705299047117,-500.0,0.00029241,2]
[311667015,1705299047126,-500.0,0.00029241,2]
[311667017,1705299047135,-500.0,0.00029241,2]
[311667019,1705299047144,-500.0,0.00029241,2]
[311667021,1705299047153,-500.0,0.00029241,2]
[311667022,1705299047162,-500.0,0.00029241,2]
[311667023,1705299047171,-1187.17,0.0002927,2]
[311667025,1705299047180,-2177.54,0.0002927,2]
[311667026,1705299047189,-1026.51,0.0002927,2]
[311667028,1705299047200,-574.35,0.0002927,2]
[311667030,1705299047209,-500.0,0.0002927,2]
[311667032,1705299047219,-500.0,0.0002927,2]
[311667034,1705299047229,-500.0,0.0002927,2]
[311667036,1705299047239,-617.71,0.00029271,2]
[311667038,1705299047248,-500.0,0.00029272,2]
[311667040,1705299047257,-500.0,0.00029272,2]
[311667042,1705299047266,-2545.1,0.00029293,2]
[311667044,1705299047275,-500.0,0.00029293,2]
[311667046,1705299047284,-155.7547554,0.00029315,2]
[311667048,1705299047293,-153.0,0.00029315,2]
[311667050,1705299047302,-153.0,0.00029315,2]
[311667052,1705299047311,-153.0,0.00029315,2]
[311667054,1705299047320,-153.0,0.00029315,2]
[311667056,1705299047329,-910.83,0.00029325,2]
[311667058,1705299047338,-4175.15,0.00029325,2]
[311667060,1705299047347,-500.0,0.00029325,2]
[311667061,1705299047356,-1477.28,0.00029325,2]
[311667063,1705299047364,-500.0,0.00029325,2]
[311667065,1705299047373,-3060.32488691,0.00029352,2]
[311667067,1705299047382,-525.0,0.00029352,2]
[311667069,1705299047390,-203.22117167,0.00029352,2]
[311667071,1705299047399,-500.0,0.00029379,2]
[311667073,1705299047408,-500.0,0.00029379,2]
[311667075,1705299047417,-500.0,0.00029379,2]
[311667077,1705299047426,-500.0,0.00029379,2]
[311667079,1705299047434,-500.0,0.00029379,2]
[311667081,1705299047443,-500.0,0.00029379,2]
[311667083,1705299047453,-500.0,0.00029379,2]
[311667084,1705299047462,-500.0,0.00029401,2]
[311667086,1705299047471,-177.47888239,0.00029401,2]
[311667088,1705299047480,-500.0,0.00029464,2]
[311667090,1705299047491,-500.0,0.00029464,2]
[311667092,1705299047500,-500.0,0.00029475,2]
[311667094,1705299047509,-500.0,0.00029475,2]
[311667096,1705299047519,-500.0,0.00029475,2]
[311667098,1705299047528,-500.0,0.00029515,2]
[311667100,1705299047537,-500.0,0.00029515,2]
[311667102,1705299047546,-500.0,0.00029515,2]
[311667103,1705299047555,-500.0,0.00029515,2]
[311667105,1705299047563,-500.0,0.00029515,2]
[311667107,1705299047572,-250.11,0.00029515,2]
[311667109,1705299047582,-500.0,0.00029515,2]
[311667111,1705299047590,-500.0,0.00029515,2]
[311667112,1705299047599,-519.0460674,0.00029515,2]
[311667113,1705299047609,-575.28227044,0.00029515,2]
[311667114,1705299047618,-521.00009772,0.00029518,2]
[311667115,1705299047627,-7946.17143927,0.00029519,2]
[311667116,1705299047636,-23824.33076765,0.0002952,2]
[311667117,1705299047645,-1187.17,0.00029544,2]
[311667118,1705299047654,-2177.54,0.00029544,2]
[311667119,1705299047662,-1026.51,0.00029544,2]
[311667120,1705299047671,-574.35,0.00029544,2]
[311667121,1705299047680,-500.0,0.00029544,2]
[311667122,1705299047688,-500.0,0.00029544,2]
[311667123,1705299047697,-617.71,0.00029545,2]
[311667124,1705299047796,-500.0,0.00029546,2]
[311667125,1705299047805,-2545.1,0.00029567,2]
[311667126,1705299047814,-500.0,0.00029567,2]
[311667127,1705299047823,-910.83,0.00029599,2]
[311667128,1705299047832,-4175.15,0.00029599,2]
[311667130,1705299047841,-500.0,0.00029599,2]
[311667131,1705299047850,-1477.28,0.00029599,2]
[311667132,1705299047859,-500.0,0.00029653,2]
[311667133,1705299047868,-500.0,0.00029653,2]
[311667135,1705299047878,-500.0,0.00029653,2]
[311667137,1705299047887,-579.14690654,0.00029653,2]
[311667139,1705299047896,-500.0,0.00029653,2]
[311667141,1705299047911,-1742.95157982,0.00029678,2]
[311667143,1705299047920,-1990.13068714,0.00029678,2]
[311667145,1705299047928,-15196.93299784,0.00029678,2]
[311667147,1705299047937,-682.17509327,0.00029678,2]
[311667149,1705299047947,-272.04729889,0.00029679,2]
[311667151,1705299047956,-155.01395126,0.00029679,2]
[311667153,1705299047965,-1251.04496716,0.00029679,2]
[311667155,1705299047974,-2036.81782964,0.00029679,2]
[311667157,1705299047987,-155.19972441,0.00029679,2]
[311667159,1705299047997,-507.44515137,0.0002968,3]
[311667161,1705299048006,-500.0,0.00029738,2]
[311667163,1705299048017,-500.0,0.00029749,2]
[311667165,1705299048026,-500.0,0.00029789,2]
[311667167,1705299048036,-500.0,0.00029789,2]
[311667169,1705299048045,-15424.04439632,0.0002979,7]
[311668151,1705300233760,-154.9690062,0.00027528,4]
[311668152,1705300233770,-500.0,0.00027529,2]
[311668153,1705300233779,-400.40631078,0.0002753,2]
[311668154,1705300233788,-234.82235346,0.00027578,2]
[311668155,1705300233797,-2475.7657507,0.00027588,2]
[311668156,1705300233806,-500.0,0.00028691,2]
[311668157,1705300233815,-500.0,0.00028723,2]
[311668158,1705300233825,-500.0,0.00028723,2]
[311668159,1705300233834,-500.0,0.00028723,2]
[311668160,1705300233843,-630.0683856,0.00028723,2]
[311668161,1705300233853,-506.06741952,0.00028723,2]
[311668162,1705300233862,-147.90077374,0.00028723,2]
[311668163,1705300233874,-352.09922626,0.00028723,2]
[311668164,1705300233884,-500.0,0.00028723,2]
[311668165,1705300233893,-2662.4063655,0.00028738,3]
[311668166,1705300233903,-331.5031932,0.00028738,2]
[311668167,1705300233912,-1206.51512543,0.00028738,3]
[311668168,1705300233921,-261.27836778,0.00028743,7]
[311668169,1705300233931,-1463.09133499,0.00028744,2]
[311668170,1705300233940,-155.0,0.00028775,2]
[311668171,1705300233949,-3468.59352094,0.00028775,2]
[311668172,1705300233959,-500.0,0.00028776,2]
[311668173,1705300233968,-500.0,0.00028776,2]
[311668174,1705300233977,-500.0,0.00028776,2]
[311668175,1705300233986,-500.0,0.00028776,2]
[311668176,1705300233995,-521.00009772,0.00028829,2]
[311668177,1705300234004,-191.10838986,0.0002883,2]
[311668178,1705300234014,-518.86247278,0.00028831,2]
[311668179,1705300234024,-500.0,0.00028831,2]
[311668180,1705300234033,-506.63455425,0.00028831,2]
[311668181,1705300234043,-500.0,0.00028831,2]
[311668182,1705300234052,-500.0,0.00028831,2]
[311668183,1705300234062,-500.0,0.00028831,2]
[311668184,1705300234072,-500.0,0.00028831,2]
[311668185,1705300234082,-500.0,0.00028831,2]
[311668186,1705300234091,-221.94011817,0.00028831,2]
[311668187,1705300234101,-500.0,0.00028831,2]
[311668188,1705300234111,-500.1614092,0.00028831,2]
[311668189,1705300234121,-251.6507224,0.00028831,2]
[311668190,1705300234132,-500.0,0.00028831,2]
[311668191,1705300234142,-500.0,0.00028831,2]
[311668192,1705300234153,-500.0,0.00028831,2]
[311668193,1705300234162,-500.0,0.00028831,2]
[311668194,1705300234171,-500.0,0.00028853,2]
[311668195,1705300234182,-500.0,0.00028853,2]
[311668196,1705300234278,-500.0,0.00028853,2]
[311668197,1705300234308,-500.0,0.00028853,2]
[311668198,1705300234319,-471.082915,0.00028951,2]
[311668199,1705300234328,-506.46,0.00028997,2]
[311668200,1705300234338,-500.0,0.00028997,2]
[311668201,1705300234347,-500.0,0.00028997,2]
[311668202,1705300234356,-154.98450155,0.00029,2]
[311668203,1705300234366,-2316.63489669,0.00029,2]
[311668204,1705300234375,-500.0,0.0002905,2]
[311668205,1705300234384,-500.0,0.0002905,2]
[311668206,1705300234393,-500.0,0.0002905,2]